[Event "European Rapid Championship 2021"]
[Site "Katowice"]
[Date "2021.12.18"]
[Round "4.12"]
[White "Wisniewski, Michal"]
[Black "Dylag, Emilia"]
[Result "1-0"]
[ECO "A05"]
[WhiteElo "2248"]
[BlackElo "1776"]
[Annotator "ChessBase"]
[PlyCount "209"]
[EventDate "2021.12.18"]
[EventType "swiss"]
[EventCountry "POL"]
[SourceTitle "playchess.com"]
[Source "ChessBase"]
[SourceQuality "1"]
[TimeControl "900+10"]

1. Nf3 {[%emt 0:00:01]} Nf6 {[%emt 0:00:01]} 2. c4 {[%emt 0:00:03]} e6 {
[%emt 0:00:02]} 3. g3 {[%emt 0:00:02]} Be7 {[%emt 0:00:03]} 4. Bg2 {[%emt 0:00:
01]} O-O {[%emt 0:00:03]} 5. O-O {[%emt 0:00:02]} d5 {[%emt 0:00:03]} 6. b3 {
[%emt 0:00:01]} c5 {[%emt 0:00:05]} 7. Bb2 {[%emt 0:00:02]} Nc6 {[%emt 0:00:02]
} 8. e3 {[%emt 0:00:02]} b6 {[%emt 0:00:20]} 9. Nc3 {[%emt 0:00:02]} dxc4 {
[%emt 0:00:23]} 10. bxc4 {[%emt 0:00:03]} Bb7 {[%emt 0:00:03]} 11. Qe2 {
[%emt 0:00:04]} Rc8 {[%emt 0:00:33]} 12. Rfd1 {[%emt 0:00:02]} Rc7 {[%emt 0:00:
36]} 13. Rac1 {[%emt 0:00:41]} Rd7 {[%emt 0:00:18]} 14. Na4 {[%emt 0:01:08]}
Qa8 {[%emt 0:03:21]} 15. d4 {[%emt 0:01:22]} cxd4 {[%emt 0:01:21]} 16. exd4 {
[%emt 0:00:03]} Rfd8 {[%emt 0:00:59]} 17. c5 {[%emt 0:00:21]} Nd5 {[%emt 0:01:
56]} 18. Nd2 {[%emt 0:01:06]} Bf6 {[%emt 0:02:33]} 19. Ne4 {[%emt 0:00:10]} Be7
{[%emt 0:01:30]} 20. h4 {[%emt 0:00:01]} Ncb4 {[%emt 0:01:10]} 21. a3 {[%emt 0:
00:18]} Ba6 {[%emt 0:00:16]} 22. Qf3 {[%emt 0:00:11]} Nc6 {[%emt 0:00:06]} 23.
Qb3 {[%emt 0:01:15]} Na5 {[%emt 0:00:28]} 24. Qf3 {[%emt 0:00:26]} b5 {[%emt 0:
00:57]} 25. Nac3 {[%emt 0:01:25]} Nc4 {[%emt 0:01:18]} 26. Ba1 {[%emt 0:00:27]}
Qb8 {[%emt 0:00:38]} 27. Nxd5 {[%emt 0:00:59]} exd5 {[%emt 0:00:02]} 28. Nc3 {
[%emt 0:00:52]} Bf8 {[%emt 0:00:26]} 29. Ne2 {[%emt 0:00:39]} Bb7 {[%emt 0:00:
13]} 30. Nf4 {[%emt 0:00:01]} Bc6 {[%emt 0:00:09]} 31. Rb1 {[%emt 0:00:05]} a5
{[%emt 0:00:03]} 32. Rb3 {[%emt 0:00:36]} Re8 {[%emt 0:00:10]} 33. Qg4 {
[%emt 0:00:32]} Qb7 {[%emt 0:00:15]} 34. Nd3 {[%emt 0:00:39]} g6 {[%emt 0:00:
11]} 35. h5 {[%emt 0:00:18]} Bg7 {[%emt 0:00:02]} 36. Nb2 {[%emt 0:00:56]} Nxb2
{[%emt 0:00:21]} 37. Bxb2 {[%emt 0:00:09]} Rde7 {[%emt 0:00:02]} 38. hxg6 {
[%emt 0:00:40]} hxg6 {[%emt 0:00:01]} 39. Bc3 {[%emt 0:00:14]} Qc7 {[%emt 0:00:
21]} 40. Rb2 {[%emt 0:00:12]} Rb8 {[%emt 0:00:14]} 41. Qg5 {[%emt 0:00:05]} Rd8
{[%emt 0:00:11]} 42. Bxa5 {[%emt 0:00:04]} Qxa5 {[%emt 0:00:04]} 43. Qxe7 {
[%emt 0:00:02]} Re8 {[%emt 0:00:15]} 44. Qd6 {[%emt 0:00:01]} Qa4 {[%emt 0:00:
10]} 45. Rbb1 {[%emt 0:00:12]} Re6 {[%emt 0:00:10]} 46. Qd8+ {[%emt 0:00:05]}
Kh7 {[%emt 0:00:02]} 47. Bxd5 {[%emt 0:00:03]} Bf6 {[%emt 0:00:11]} 48. Bxe6 {
[%emt 0:01:20]} Bxd8 {[%emt 0:00:05]} 49. d5 {[%emt 0:00:01]} Be8 {[%emt 0:00:
21]} 50. Bh3 {[%emt 0:00:09]} Qxa3 {[%emt 0:00:11]} 51. c6 {[%emt 0:00:01]} Qd6
{[%emt 0:00:10]} 52. Bg4 {[%emt 0:00:21]} b4 {[%emt 0:00:03]} 53. Kg2 {[%emt 0:
00:02]} Bb6 {[%emt 0:00:12]} 54. Rb2 {[%emt 0:00:09]} f5 {[%emt 0:00:12]} 55.
Bf3 {[%emt 0:00:01]} Bf7 {[%emt 0:00:12]} 56. Rd3 {[%emt 0:00:14]} Bd8 {
[%emt 0:00:07]} 57. Ra2 {[%emt 0:00:08]} Bb6 {[%emt 0:00:12]} 58. Ra6 {[%emt 0:
01:51]} Bc7 {[%emt 0:00:02]} 59. Ra7 {[%emt 0:00:04]} Kh6 {[%emt 0:00:23]} 60.
Rb7 {[%emt 0:00:05]} b3 {[%emt 0:00:03]} 61. Rbxb3 {[%emt 0:00:04]} g5 {
[%emt 0:00:05]} 62. Kg1 {[%emt 0:00:35]} g4 {[%emt 0:00:06]} 63. Bg2 {[%emt 0:
00:01]} f4 {[%emt 0:00:06]} 64. gxf4 {[%emt 0:00:33]} Qxf4 {[%emt 0:00:02]} 65.
Rb7 {[%emt 0:00:02]} Qc1+ {[%emt 0:00:15]} 66. Bf1 {[%emt 0:00:00]} Bg6 {
[%emt 0:00:32]} 67. Re3 {[%emt 0:01:44]} Bf4 {[%emt 0:00:01]} 68. Re6 {[%emt 0:
00:01]} g3 {[%emt 0:00:18]} 69. Rf7 {[%emt 0:01:31]} gxf2+ {[%emt 0:00:09]} 70.
Kg2 {[%emt 0:00:01]} Qc5 {[%emt 0:00:10]} 71. Rff6 {[%emt 0:00:25]} Qxd5+ {
[%emt 0:00:04]} 72. Kxf2 {[%emt 0:00:01]} Qc5+ {[%emt 0:00:15]} 73. Kf3 {
[%emt 0:00:03]} Qd5+ {[%emt 0:00:12]} 74. Kxf4 {[%emt 0:00:02]} Qg5+ {[%emt 0:
00:01]} 75. Kf3 {[%emt 0:00:02]} Qd5+ {[%emt 0:00:07]} 76. Kf2 {[%emt 0:00:04]}
Qc5+ {[%emt 0:00:11]} 77. Kg2 {[%emt 0:00:07]} Qg5+ {[%emt 0:00:02]} 78. Kh2 {
[%emt 0:00:06]} Qh4+ {[%emt 0:00:31]} 79. Bh3 {[%emt 0:00:02]} Kh7 {[%emt 0:00:
06]} 80. Rxg6 {[%emt 0:00:34]} Qf2+ {[%emt 0:00:08]} 81. Bg2 {[%emt 0:00:11]}
Qh4+ {[%emt 0:00:07]} 82. Kg1 {[%emt 0:00:03]} Qd4+ {[%emt 0:00:02]} 83. Kf1 {
[%emt 0:00:04]} Qf4+ {[%emt 0:00:20]} 84. Ke2 {[%emt 0:00:06]} Qc4+ {[%emt 0:
00:08]} 85. Ke3 {[%emt 0:00:02]} Qc3+ {[%emt 0:00:07]} 86. Kf4 {[%emt 0:00:02]}
Qd2+ {[%emt 0:00:09]} 87. Kg3 {[%emt 0:00:19]} Qd3+ {[%emt 0:00:21]} 88. Bf3 {
[%emt 0:00:03]} Qc3 {[%emt 0:00:12]} 89. Rh6+ {[%emt 0:00:19]} Kg7 {[%emt 0:00:
01]} 90. Reg6+ {[%emt 0:00:01]} Kf7 {[%emt 0:00:13]} 91. Rf6+ {[%emt 0:00:32]}
Kg7 {[%emt 0:00:01]} 92. Re6 {[%emt 0:00:43]} Kf7 {[%emt 0:00:24]} 93. Rhf6+ {
[%emt 0:00:07]} Kg7 {[%emt 0:00:06]} 94. Rf4 {[%emt 0:00:03]} Qc5 {[%emt 0:00:
13]} 95. Rff6 {[%emt 0:00:36]} Qg1+ {[%emt 0:00:11]} 96. Kf4 {[%emt 0:00:01]}
Qd4+ {[%emt 0:00:03]} 97. Be4 {[%emt 0:00:02]} Qf2+ {[%emt 0:00:16]} 98. Ke5 {
[%emt 0:00:02]} Qc5+ {[%emt 0:00:09]} 99. Bd5 {[%emt 0:00:01]} Qe3+ {[%emt 0:
00:13]} 100. Kd6 {[%emt 0:00:02]} Qb6 {[%emt 0:00:10]} 101. Kd7 {[%emt 0:00:13]
} Qc5 {[%emt 0:00:09]} 102. Rd6 {[%emt 0:00:03]} Qb5 {[%emt 0:00:08]} 103. Rf7+
{[%emt 0:00:06]} Kg8 {[%emt 0:00:13]} 104. Re7+ {[%emt 0:00:03]} Kf8 {[%emt 0:
00:04]} 105. Rf6# 1-0

[Event "European Rapid Championship 2021"]
[Site "Katowice"]
[Date "2021.12.18"]
[Round "4.12"]
[White "Paszewski, Mateusz"]
[Black "Sumets, Andrey"]
[Result "0-1"]
[ECO "D10"]
[WhiteElo "2202"]
[BlackElo "2508"]
[Annotator "ChessBase"]
[PlyCount "140"]
[EventDate "2021.12.18"]
[EventType "swiss"]
[EventCountry "POL"]
[SourceTitle "playchess.com"]
[Source "ChessBase"]
[SourceQuality "1"]
[TimeControl "900+10"]

1. c4 {[%emt 0:00:02]} c6 {[%emt 0:00:23]} 2. d4 {[%emt 0:00:14]} d5 {[%emt 0:
00:01]} 3. cxd5 {[%emt 0:00:01]} cxd5 {[%emt 0:00:01]} 4. Bf4 {[%emt 0:00:02]}
Nc6 {[%emt 0:00:08]} 5. e3 {[%emt 0:00:01]} Nf6 {[%emt 0:00:02]} 6. Nc3 {
[%emt 0:00:02]} Bf5 {[%emt 0:00:10]} 7. Qb3 {[%emt 0:00:04]} Na5 {[%emt 0:00:
01]} 8. Qa4+ {[%emt 0:00:01]} Bd7 {[%emt 0:00:02]} 9. Qc2 {[%emt 0:00:01]} e6 {
[%emt 0:00:24]} 10. Bd3 {[%emt 0:00:07]} Nc6 {[%emt 0:00:05]} 11. Qe2 {[%emt 0:
00:42]} Bb4 {[%emt 0:00:50]} 12. Nf3 {[%emt 0:01:34]} Nh5 {[%emt 0:05:27]} 13.
Bg5 {[%emt 0:01:10]} Qa5 {[%emt 0:00:02]} 14. O-O {[%emt 0:00:04]} h6 {[%emt 0:
00:08]} 15. Bh4 {[%emt 0:00:05]} g5 {[%emt 0:01:10]} 16. Nd2 {[%emt 0:01:59]}
Bxc3 {[%emt 0:01:03]} 17. Nb3 {[%emt 0:01:34]} Nf4 {[%emt 0:01:20]} 18. exf4 {
[%emt 0:00:18]} Nxd4 {[%emt 0:00:02]} 19. Nxd4 {[%emt 0:00:10]} Bxd4 {[%emt 0:
00:02]} 20. fxg5 {[%emt 0:00:05]} hxg5 {[%emt 0:00:33]} 21. Bxg5 {[%emt 0:00:
35]} Qc7 {[%emt 0:00:33]} 22. g3 {[%emt 0:00:34]} Qe5 {[%emt 0:00:02]} 23. Qd2
{[%emt 0:03:41]} Bxb2 {[%emt 0:01:09]} 24. Rae1 {[%emt 0:00:14]} Qd4 {[%emt 0:
00:26]} 25. Rb1 {[%emt 0:01:10]} Bc3 {[%emt 0:00:06]} 26. Qe2 {[%emt 0:00:01]}
Bc6 {[%emt 0:00:25]} 27. Bb5 {[%emt 0:01:20]} Qe5 {[%emt 0:00:40]} 28. Bxc6+ {
[%emt 0:01:06]} bxc6 {[%emt 0:00:01]} 29. Qa6 {[%emt 0:00:03]} O-O {[%emt 0:00:
16]} 30. Bf4 {[%emt 0:00:18]} Qe4 {[%emt 0:00:34]} 31. Qxc6 {[%emt 0:00:02]}
Rac8 {[%emt 0:00:18]} 32. Qb7 {[%emt 0:00:37]} Bd4 {[%emt 0:00:05]} 33. Bh6 {
[%emt 0:00:49]} Rfe8 {[%emt 0:00:15]} 34. Rbc1 {[%emt 0:00:20]} Rxc1 {[%emt 0:
00:10]} 35. Bxc1 {[%emt 0:00:01]} e5 {[%emt 0:01:50]} 36. Bb2 {[%emt 0:00:11]}
Bb6 {[%emt 0:00:23]} 37. Qd7 {[%emt 0:00:09]} Re6 {[%emt 0:00:44]} 38. Qc8+ {
[%emt 0:00:43]} Kg7 {[%emt 0:00:03]} 39. Ba3 {[%emt 0:00:04]} Qf3 {[%emt 0:00:
09]} 40. Qc1 {[%emt 0:01:16]} Rg6 {[%emt 0:01:16]} 41. Bc5 {[%emt 0:00:10]} d4
{[%emt 0:00:13]} 42. Bxb6 {[%emt 0:00:02]} axb6 {[%emt 0:00:00]} 43. Re1 {
[%emt 0:00:15]} e4 {[%emt 0:00:12]} 44. Qb2 {[%emt 0:00:13]} Rd6 {[%emt 0:00:
04]} 45. Qb4 {[%emt 0:00:11]} Rd5 {[%emt 0:00:10]} 46. Qc4 {[%emt 0:00:14]} Qf5
{[%emt 0:00:13]} 47. Rd1 {[%emt 0:00:12]} b5 {[%emt 0:00:05]} 48. Qb4 {[%emt 0:
00:05]} d3 {[%emt 0:00:02]} 49. Qd2 {[%emt 0:00:04]} Qf3 {[%emt 0:00:22]} 50.
Re1 {[%emt 0:00:02]} Rc5 {[%emt 0:00:12]} 51. Qb2+ {[%emt 0:00:23]} Qf6 {
[%emt 0:00:10]} 52. Qd2 {[%emt 0:00:16]} Rc2 {[%emt 0:00:32]} 53. Qe3 {[%emt 0:
00:01]} Rc4 {[%emt 0:00:02]} 54. f3 {[%emt 0:00:16]} exf3 {[%emt 0:00:08]} 55.
Rf1 {[%emt 0:00:04]} Qd4 {[%emt 0:00:05]} 56. Qxd4+ {[%emt 0:00:08]} Rxd4 {
[%emt 0:00:01]} 57. Kf2 {[%emt 0:00:05]} d2 {[%emt 0:00:02]} 58. Rd1 {[%emt 0:
00:01]} Rd3 {[%emt 0:00:01]} 59. g4 {[%emt 0:00:16]} f5 {[%emt 0:00:28]} 60.
gxf5 {[%emt 0:00:28]} Kf6 {[%emt 0:00:01]} 61. Kg3 {[%emt 0:00:01]} Kxf5 {
[%emt 0:00:02]} 62. h3 {[%emt 0:00:03]} Ke4 {[%emt 0:00:04]} 63. Kf2 {[%emt 0:
00:02]} Kf4 {[%emt 0:00:02]} 64. h4 {[%emt 0:00:01]} Kg4 {[%emt 0:00:05]} 65.
Rg1+ {[%emt 0:00:38]} Kxh4 {[%emt 0:00:02]} 66. Rd1 {[%emt 0:00:01]} Kg4 {
[%emt 0:00:02]} 67. a4 {[%emt 0:00:01]} bxa4 {[%emt 0:00:10]} 68. Rg1+ {
[%emt 0:00:02]} Kf4 {[%emt 0:00:03]} 69. Rg8 {[%emt 0:00:01]} d1=N+ {[%emt 0:
00:07]} 70. Ke1 {[%emt 0:00:02]} Nc3 {[%emt 0:00:13]} 0-1

[Event "European Rapid Championship 2021"]
[Site "Katowice"]
[Date "2021.12.18"]
[Round "4.13"]
[White "Janik, Igor"]
[Black "Mikhaletz, Lubomir"]
[Result "1-0"]
[ECO "B40"]
[WhiteElo "2462"]
[BlackElo "2166"]
[Annotator "ChessBase"]
[PlyCount "99"]
[EventDate "2021.12.18"]
[EventType "swiss"]
[EventCountry "POL"]
[SourceTitle "playchess.com"]
[Source "ChessBase"]
[SourceQuality "1"]
[TimeControl "900+10"]

1. e4 {[%emt 0:00:02]} c5 {[%emt 0:00:03]} 2. Nf3 {[%emt 0:00:01]} e6 {[%emt 0:
00:01]} 3. g3 {[%emt 0:00:03]} Nc6 4. Bg2 {[%emt 0:00:00]} Nf6 {[%emt 0:01:11]}
5. Qe2 e5 6. O-O {[%emt 0:00:14]} d6 {[%emt 0:00:54]} 7. c3 {[%emt 0:00:01]} g6
{[%emt 0:00:13]} 8. d4 {[%emt 0:00:53]} cxd4 {[%emt 0:00:17]} 9. cxd4 {[%emt 0:
00:01]} Bg4 {[%emt 0:00:34]} 10. d5 {[%emt 0:00:16]} Nd4 {[%emt 0:00:11]} 11.
Qd3 {[%emt 0:00:03]} Bxf3 {[%emt 0:00:06]} 12. Bxf3 {[%emt 0:00:02]} Nxf3+ {
[%emt 0:00:04]} 13. Qxf3 {[%emt 0:00:02]} Bg7 {[%emt 0:00:24]} 14. Nc3 {
[%emt 0:00:14]} O-O {[%emt 0:00:10]} 15. Bg5 {[%emt 0:00:39]} h6 {[%emt 0:00:
11]} 16. Be3 {[%emt 0:00:05]} a6 {[%emt 0:00:10]} 17. Qe2 {[%emt 0:00:17]} Nd7
{[%emt 0:00:08]} 18. f3 {[%emt 0:00:19]} Kh7 {[%emt 0:01:06]} 19. Rac1 {
[%emt 0:00:06]} Rc8 {[%emt 0:01:12]} 20. Qd3 {[%emt 0:01:30]} h5 {[%emt 0:04:
01]} 21. Ne2 {[%emt 0:00:24]} Qa5 {[%emt 0:00:07]} 22. a3 {[%emt 0:00:32]} Bh6
{[%emt 0:00:11]} 23. f4 {[%emt 0:00:49]} f5 {[%emt 0:00:03]} 24. Rxc8 {[%emt 0:
00:27]} Rxc8 {[%emt 0:00:52]} 25. exf5 {[%emt 0:00:02]} Qb5 {[%emt 0:01:06]}
26. fxg6+ {[%emt 0:00:19]} Kg7 {[%emt 0:00:07]} 27. Qxb5 {[%emt 0:00:07]} axb5
{[%emt 0:00:01]} 28. Nc3 {[%emt 0:00:04]} Nf6 {[%emt 0:00:13]} 29. Bc1 {
[%emt 0:00:45]} b4 {[%emt 0:00:47]} 30. fxe5 {[%emt 0:00:18]} Ng4 {[%emt 0:00:
33]} 31. Bxh6+ {[%emt 0:00:16]} Kxh6 {[%emt 0:00:02]} 32. axb4 {[%emt 0:00:15]}
Nxe5 {[%emt 0:00:02]} 33. Ne4 {[%emt 0:00:19]} Kxg6 {[%emt 0:00:25]} 34. Nxd6 {
[%emt 0:00:36]} Rc2 {[%emt 0:00:22]} 35. Rf2 {[%emt 0:00:35]} Rc1+ {[%emt 0:00:
06]} 36. Kg2 {[%emt 0:00:01]} Rd1 {[%emt 0:00:16]} 37. Nxb7 {[%emt 0:00:50]}
Rxd5 {[%emt 0:00:04]} 38. Nc5 {[%emt 0:00:07]} Rd4 {[%emt 0:00:10]} 39. Re2 {
[%emt 0:00:12]} Kf5 {[%emt 0:00:13]} 40. b5 {[%emt 0:00:10]} Rc4 {[%emt 0:00:
17]} 41. b4 {[%emt 0:00:08]} Ng4 {[%emt 0:00:10]} 42. h3 {[%emt 0:01:08]} Nf6 {
[%emt 0:00:17]} 43. Rf2+ {[%emt 0:00:23]} Kg6 {[%emt 0:00:21]} 44. Rf4 {
[%emt 0:00:31]} Rc2+ {[%emt 0:00:06]} 45. Kf3 {[%emt 0:00:10]} Rc3+ {[%emt 0:
00:14]} 46. Kf2 {[%emt 0:00:04]} Rc2+ {[%emt 0:00:22]} 47. Ke1 {[%emt 0:00:07]}
Nd5 {[%emt 0:01:07]} 48. Rd4 {[%emt 0:00:22]} Ne3 {[%emt 0:00:01]} 49. Re4 {
[%emt 0:00:07]} Nd5 {[%emt 0:00:10]} 50. b6 {[%emt 0:00:02]} 1-0

[Event "European Rapid Championship 2021"]
[Site "Katowice"]
[Date "2021.12.18"]
[Round "4.13"]
[White "Zapalowska, Wiktoria"]
[Black "Zakrzewski, Marek"]
[Result "1/2-1/2"]
[ECO "B49"]
[WhiteElo "1288"]
[BlackElo "2239"]
[Annotator "NA"]
[PlyCount "98"]
[EventDate "2021.12.18"]
[EventType "swiss"]
[EventCountry "POL"]
[SourceTitle "playchess.com"]
[Source "ChessBase"]
[SourceQuality "1"]
[TimeControl "900+10"]

1. e4 {[%emt 0:00:01]} c5 {[%emt 0:00:01]} 2. Nf3 {[%emt 0:00:02]} e6 {[%emt 0:
00:02]} 3. d4 {[%emt 0:00:01]} cxd4 {[%emt 0:00:03]} 4. Nxd4 {[%emt 0:00:01]}
Nc6 {[%emt 0:00:01]} 5. Nc3 {[%emt 0:00:02]} Qc7 {[%emt 0:00:01]} 6. Be3 {
[%emt 0:00:06]} a6 {[%emt 0:00:02]} 7. Be2 {[%emt 0:00:09]} Nf6 {[%emt 0:00:02]
} 8. f3 {[%emt 0:00:13]} b5 {[%emt 0:00:45]} 9. a3 {[%emt 0:00:04]} Bb7 {
[%emt 0:00:03]} 10. O-O {[%emt 0:00:04]} Bc5 {[%emt 0:00:09]} 11. Bf2 {[%emt 0:
00:32]} Qb6 {[%emt 0:00:13]} 12. Nxc6 {[%emt 0:00:14]} Bxf2+ {[%emt 0:00:08]}
13. Rxf2 {[%emt 0:00:02]} dxc6 {[%emt 0:00:59]} 14. Qe1 {[%emt 0:00:07]} O-O {
[%emt 0:00:11]} 15. Kh1 {[%emt 0:00:26]} e5 {[%emt 0:01:03]} 16. Rd1 {[%emt 0:
00:56]} Rad8 {[%emt 0:00:15]} 17. Bd3 {[%emt 0:00:10]} Rd6 {[%emt 0:02:27]} 18.
Rfd2 {[%emt 0:00:05]} Rfd8 {[%emt 0:00:11]} 19. Bf1 {[%emt 0:01:41]} c5 {
[%emt 0:01:25]} 20. Qe3 {[%emt 0:01:28]} Qc7 {[%emt 0:02:10]} 21. Rxd6 {
[%emt 0:01:35]} Rxd6 {[%emt 0:00:02]} 22. Rxd6 {[%emt 0:00:01]} Qxd6 {[%emt 0:
00:02]} 23. Qd3 {[%emt 0:01:03]} Qd4 {[%emt 0:00:09]} 24. Qxd4 {[%emt 0:02:28]}
exd4 {[%emt 0:00:08]} 25. Ne2 {[%emt 0:00:55]} Kf8 {[%emt 0:00:21]} 26. b4 {
[%emt 0:00:11]} Nd7 {[%emt 0:04:43]} 27. bxc5 {[%emt 0:00:06]} Nxc5 {[%emt 0:
00:02]} 28. Nxd4 {[%emt 0:00:02]} Ke7 {[%emt 0:00:01]} 29. Kg1 {[%emt 0:00:06]}
Kd6 {[%emt 0:02:02]} 30. Kf2 {[%emt 0:00:13]} Na4 {[%emt 0:00:04]} 31. c4 {
[%emt 0:03:06]} bxc4 {[%emt 0:00:24]} 32. Bxc4 {[%emt 0:00:01]} Kc5 {[%emt 0:
00:03]} 33. Bb3 {[%emt 0:00:00]} Kxd4 {[%emt 0:00:12]} 34. Bxa4 {[%emt 0:00:02]
} Kc3 {[%emt 0:00:40]} 35. Be8 {[%emt 0:00:04]} f6 {[%emt 0:00:20]} 36. Ke3 {
[%emt 0:00:08]} a5 {[%emt 0:00:39]} 37. g3 {[%emt 0:00:36]} g5 {[%emt 0:00:11]}
38. f4 {[%emt 0:00:12]} gxf4+ {[%emt 0:00:02]} 39. gxf4 {[%emt 0:00:02]} Kb3 {
[%emt 0:00:36]} 40. a4 {[%emt 0:00:03]} Kc4 {[%emt 0:00:02]} 41. e5 {[%emt 0:
00:46]} fxe5 {[%emt 0:00:03]} 42. fxe5 {[%emt 0:00:01]} Kd5 {[%emt 0:00:09]}
43. Kf4 {[%emt 0:00:01]} Ke6 {[%emt 0:00:08]} 44. Bb5 {[%emt 0:00:20]} Bd5 {
[%emt 0:00:06]} 45. Be8 {[%emt 0:00:11]} Bb3 {[%emt 0:00:02]} 46. Ke4 {[%emt 0:
00:20]} Bc2+ {[%emt 0:00:06]} 47. Kd4 {[%emt 0:00:39]} Bb3 {[%emt 0:00:06]} 48.
Ke4 {[%emt 0:00:04]} Bc2+ {[%emt 0:00:02]} 49. Kd4 {[%emt 0:00:01]} Bb3 {
[%emt 0:00:01]} 1/2-1/2

[Event "European Rapid Championship 2021"]
[Site "Katowice"]
[Date "2021.12.18"]
[Round "4.14"]
[White "Godzwon, Iwo"]
[Black "Warchol, Kamil"]
[Result "1-0"]
[ECO "B41"]
[WhiteElo "2352"]
[BlackElo "1976"]
[Annotator "NA"]
[PlyCount "67"]
[EventDate "2021.12.18"]
[EventType "swiss"]
[EventCountry "POL"]
[SourceTitle "playchess.com"]
[Source "ChessBase"]
[SourceQuality "1"]
[TimeControl "900+10"]

1. e4 {[%emt 0:00:02]} c5 {[%emt 0:00:01]} 2. Nf3 {[%emt 0:00:04]} e6 {[%emt 0:
00:01]} 3. d4 {[%emt 0:00:01]} cxd4 {[%emt 0:00:01]} 4. Nxd4 {[%emt 0:00:02]}
a6 {[%emt 0:00:01]} 5. c4 {[%emt 0:00:03]} Nf6 {[%emt 0:00:03]} 6. Nc3 {
[%emt 0:00:03]} Bb4 {[%emt 0:00:02]} 7. Nc2 {[%emt 0:01:41]} Bxc3+ {[%emt 0:01:
52]} 8. bxc3 {[%emt 0:00:02]} Nc6 {[%emt 0:00:07]} 9. Bd3 {[%emt 0:03:33]} d5 {
[%emt 0:00:15]} 10. cxd5 {[%emt 0:00:31]} exd5 {[%emt 0:00:06]} 11. exd5 {
[%emt 0:00:01]} Qxd5 {[%emt 0:01:17]} 12. O-O {[%emt 0:00:44]} O-O {[%emt 0:00:
08]} 13. Ne3 {[%emt 0:00:09]} Qa5 {[%emt 0:01:04]} 14. Bb2 {[%emt 0:00:36]} Rd8
{[%emt 0:00:22]} 15. Qb1 {[%emt 0:01:28]} Ne5 {[%emt 0:00:26]} 16. Be2 {
[%emt 0:01:43]} Rd2 {[%emt 0:02:02]} 17. Re1 {[%emt 0:00:28]} Be6 {[%emt 0:00:
21]} 18. c4 {[%emt 0:00:24]} Rd7 {[%emt 0:01:36]} 19. Bf1 {[%emt 0:01:41]} Neg4
{[%emt 0:01:57]} 20. h3 {[%emt 0:00:12]} Nxe3 {[%emt 0:00:13]} 21. Rxe3 {
[%emt 0:00:02]} Ne8 {[%emt 0:00:55]} 22. Qe4 {[%emt 0:01:53]} Qf5 {[%emt 0:00:
35]} 23. Qh4 {[%emt 0:00:27]} Rc8 {[%emt 0:00:44]} 24. Rc1 {[%emt 0:00:37]} Rd2
{[%emt 0:01:29]} 25. Bc3 {[%emt 0:00:12]} Rxa2 {[%emt 0:00:03]} 26. Bd3 {
[%emt 0:00:01]} Qc5 {[%emt 0:01:52]} 27. Qxh7+ {[%emt 0:01:17]} Kf8 {[%emt 0:
00:00]} 28. Rb1 {[%emt 0:00:16]} Nd6 {[%emt 0:00:28]} 29. Bb4 {[%emt 0:00:06]}
Qd4 {[%emt 0:00:01]} 30. Bxd6+ {[%emt 0:00:40]} Qxd6 {[%emt 0:00:02]} 31. Qh8+
{[%emt 0:00:01]} Ke7 {[%emt 0:00:03]} 32. Qxc8 {[%emt 0:00:02]} Qf4 {[%emt 0:
00:23]} 33. Qxb7+ {[%emt 0:00:03]} Kf8 {[%emt 0:00:04]} 34. Qb8+ {[%emt 0:00:
03]} 1-0

[Event "European Rapid Championship 2021"]
[Site "Katowice"]
[Date "2021.12.18"]
[Round "4.14"]
[White "Sliwicka, Alicja"]
[Black "Gumularz, Szymon"]
[Result "0-1"]
[ECO "C00"]
[WhiteElo "2303"]
[BlackElo "2452"]
[Annotator "ChessBase"]
[PlyCount "72"]
[EventDate "2021.12.18"]
[EventType "swiss"]
[EventCountry "POL"]
[SourceTitle "playchess.com"]
[Source "ChessBase"]
[SourceQuality "1"]
[TimeControl "900+10"]

1. e4 {[%emt 0:00:01]} e6 {[%emt 0:00:05]} 2. d4 {[%emt 0:00:02]} a6 {[%emt 0:
00:01]} 3. c4 {[%emt 0:00:08]} d5 {[%emt 0:00:02]} 4. e5 {[%emt 0:00:25]} c5 {
[%emt 0:00:15]} 5. cxd5 {[%emt 0:00:18]} exd5 {[%emt 0:00:01]} 6. Nc3 {[%emt 0:
00:02]} cxd4 {[%emt 0:00:46]} 7. Qxd4 {[%emt 0:00:07]} Be6 {[%emt 0:00:02]} 8.
Nf3 {[%emt 0:02:12]} Nc6 {[%emt 0:00:01]} 9. Qf4 {[%emt 0:00:24]} Nge7 {
[%emt 0:00:56]} 10. Bd3 {[%emt 0:00:33]} d4 {[%emt 0:00:43]} 11. Ne4 {[%emt 0:
00:56]} Ng6 {[%emt 0:00:23]} 12. Qg3 {[%emt 0:00:01]} Ngxe5 {[%emt 0:03:10]}
13. Nxe5 {[%emt 0:00:03]} Qa5+ {[%emt 0:00:01]} 14. Bd2 {[%emt 0:00:01]} Qxe5 {
[%emt 0:00:01]} 15. f4 {[%emt 0:00:49]} Qd5 {[%emt 0:00:09]} 16. O-O {[%emt 0:
00:35]} Bf5 {[%emt 0:00:08]} 17. Rfe1 {[%emt 0:00:31]} O-O-O {[%emt 0:00:09]}
18. Rac1 {[%emt 0:00:37]} Kb8 {[%emt 0:04:11]} 19. Bc4 {[%emt 0:00:21]} Qd7 {
[%emt 0:00:02]} 20. Ng5 {[%emt 0:00:08]} Bb4 21. Bxb4 {[%emt 0:00:27]} Nxb4 {
[%emt 0:00:07]} 22. a3 {[%emt 0:01:35]} d3 {[%emt 0:00:13]} 23. Nxf7 {[%emt 0:
03:33]} d2 {[%emt 0:00:13]} 24. Nxd8 {[%emt 0:00:40]} Rxd8 {[%emt 0:00:46]} 25.
axb4 {[%emt 0:00:04]} Qd4+ {[%emt 0:00:01]} 26. Qf2 {[%emt 0:00:01]} dxe1=R+ {
[%emt 0:00:12]} 27. Rxe1 {[%emt 0:00:03]} Qxc4 {[%emt 0:00:01]} 28. Qh4 {
[%emt 0:01:14]} Qd4+ {[%emt 0:00:34]} 29. Kh1 {[%emt 0:00:02]} Ka7 {[%emt 0:00:
23]} 30. h3 {[%emt 0:00:19]} Qxb4 {[%emt 0:00:21]} 31. Re5 {[%emt 0:01:01]}
Rd1+ {[%emt 0:00:32]} 32. Kh2 {[%emt 0:00:01]} Qd4 {[%emt 0:00:13]} 33. Qe7 {
[%emt 0:00:48]} Qg1+ {[%emt 0:00:37]} 34. Kg3 {[%emt 0:00:13]} Rd3+ {[%emt 0:
00:03]} 35. Kh4 {[%emt 0:00:05]} Qf2+ {[%emt 0:00:13]} 36. Kh5 {[%emt 0:00:18]}
Bg6+ {[%emt 0:00:02]} 0-1